fUST/lending_fUST_20250910
["ID","MTS","AMOUNT","RATE_DAILY","PERIOD"]
[384633575,1757490646149,-151.0,0.00013972,2]
[384633577,1757490646158,-480.0,0.00013972,2]
[384633579,1757490646167,-480.0,0.00013972,2]
[384633581,1757490646177,-151.0,0.00013972,2]
[384633584,1757490646190,-301.33983,0.00013972,2]
[384633586,1757490646199,-480.0,0.00013972,2]
[384633588,1757490646208,-151.789915,0.00013972,2]
[384633590,1757490646217,-151.0,0.00013972,2]
[384633592,1757490646226,-151.0,0.00013972,2]
[384633593,1757490646236,-151.0,0.00013972,2]
[384633596,1757490646245,-151.0,0.00013972,2]
[384633597,1757490646254,-154.0479,0.00013972,2]
[384633599,1757490646263,-480.0,0.00013972,2]
[384633601,1757490646272,-151.0,0.00013972,2]
[384633603,1757490646281,-151.0,0.00013972,2]
[384633605,1757490646291,-480.0,0.00013972,2]
[384633607,1757490646300,-152.198541,0.00013972,2]
[384633609,1757490646309,-480.0,0.00013972,2]
[384633611,1757490646321,-480.0,0.00013972,2]
[384633614,1757490646330,-480.0,0.00013972,2]
[384633616,1757490646339,-151.0,0.00013972,2]
[384633617,1757490646348,-480.0,0.00013972,2]
[384633620,1757490646357,-151.0,0.00013972,2]
[384633621,1757490646366,-151.0,0.00013972,2]
[384633624,1757490646375,-151.0,0.00013972,2]
[384633626,1757490646384,-151.0,0.00013972,2]
[384633628,1757490646394,-480.0,0.00013972,2]
[384633630,1757490646403,-480.0,0.00013972,2]
[384633631,1757490646412,-480.0,0.00013972,2]
[384633633,1757490646421,-480.0,0.00013972,2]
[384633635,1757490646430,-480.0,0.00013972,2]
[384633637,1757490646439,-480.0,0.00013972,2]
[384633640,1757490646449,-480.0,0.00013972,2]
[384633641,1757490646459,-285.484768,0.00013972,2]
[384633643,1757490646468,-154.896797,0.00013972,2]
[384633645,1757490646478,-151.0,0.00013972,2]
[384633648,1757490646487,-151.0,0.00013972,2]
[384633650,1757490646496,-155.904354,0.00013972,2]
[384633652,1757490646505,-151.0,0.00013972,2]
[384633654,1757490646515,-151.0,0.00013972,2]
[384633656,1757490646524,-480.0,0.00013972,2]
[384633658,1757490646532,-480.0,0.00013972,2]
[384633659,1757490646541,-480.0,0.00013972,2]
[384633662,1757490646551,-480.0,0.00013972,2]
[384633664,1757490646560,-187.68748812,0.00013972,2]
[384633666,1757490646571,-157.474625,0.00013972,2]
[384633668,1757490646580,-151.0,0.00013972,2]
[384633669,1757490646589,-480.0,0.00013972,2]
[384633671,1757490646598,-480.0,0.00013972,2]
[384633674,1757490646607,-480.0,0.00013972,2]
[384633675,1757490646617,-480.0,0.00013972,2]
[384633677,1757490646626,-495.25,0.00013972,2]
[384633679,1757490646636,-480.0,0.00013972,2]
[384633681,1757490646645,-480.0,0.00013972,2]
[384633683,1757490646655,-151.0,0.00013972,2]
[384633685,1757490646664,-170.036965,0.00013972,2]
[384633687,1757490646672,-480.0,0.00013972,2]
[384633689,1757490646682,-170.036965,0.00013972,2]
[384633691,1757490646691,-170.036965,0.00013972,2]
[384633693,1757490646700,-170.036965,0.00013972,2]
[384633695,1757490646709,-1226.38,0.00013972,2]
[384633697,1757490646718,-480.0,0.00013972,2]
[384633699,1757490646728,-480.0,0.00013972,2]
[384633701,1757490646736,-151.0,0.00013972,2]
[384633703,1757490646746,-214.641394,0.00013972,2]
[384633704,1757490646755,-151.0,0.00013972,2]
[384633706,1757490646763,-480.0,0.00013972,2]
[384633708,1757490646773,-480.0,0.00013972,2]
[384633710,1757490646783,-480.0,0.00013972,2]
[384633712,1757490646792,-480.0,0.00013972,2]
[384633714,1757490646801,-480.0,0.00013972,2]
[384633716,1757490646811,-567.14,0.00013972,2]
[384633718,1757490646822,-480.0,0.00013972,2]
[384633720,1757490646831,-480.0,0.00013972,2]
[384633722,1757490646841,-480.0,0.00013972,2]
[384633724,1757490646850,-480.0,0.00013972,2]
[384633726,1757490646859,-173.037576,0.00013972,2]
[384633728,1757490646868,-173.037576,0.00013972,2]
[384633730,1757490646878,-5382.22,0.00013972,2]
[384633731,1757490646887,-173.037576,0.00013972,2]
[384633733,1757490646896,-173.037576,0.00013972,2]
[384633735,1757490646905,-480.0,0.00013972,2]
[384633737,1757490646914,-158.845699,0.00013972,2]
[384633739,1757490646925,-480.0,0.00013972,2]
[384633741,1757490646935,-480.0,0.00013972,2]
[384633743,1757490646944,-151.0,0.00013972,2]
[384633745,1757490646954,-480.0,0.00013972,2]
[384633747,1757490646964,-480.0,0.00013972,2]
[384633749,1757490646973,-480.0,0.00013972,2]
[384633751,1757490646982,-380.355464,0.00013972,2]
[384633753,1757490646992,-480.0,0.00013972,2]
[384633754,1757490647001,-380.355464,0.00013972,2]
[384633756,1757490647011,-380.355464,0.00013972,2]
[384633758,1757490647021,-480.0,0.00013972,2]
[384633760,1757490647030,-380.355464,0.00013972,2]
[384633762,1757490647040,-480.0,0.00013972,2]
[384633764,1757490647049,-480.0,0.00013972,2]
[384633766,1757490647061,-485.13,0.00013972,2]
[384633768,1757490647071,-480.0,0.00013972,2]
[384633770,1757490647080,-480.0,0.00013972,2]
[384633772,1757490647090,-480.0,0.00013972,2]
[384633774,1757490647099,-480.0,0.00013972,2]
[384633776,1757490647109,-480.0,0.00013972,2]
[384633778,1757490647119,-480.0,0.00013972,2]
[384633780,1757490647128,-480.0,0.00013972,2]
[384633782,1757490647138,-228.853298,0.00013972,2]
[384633784,1757490647151,-480.0,0.00013972,2]
[384633786,1757490647160,-647.59,0.00013972,2]
[384633788,1757490647170,-480.0,0.00013972,2]
[384633790,1757490647179,-480.0,0.00013972,2]
[384633791,1757490647188,-480.0,0.00013972,2]
[384633793,1757490647198,-480.0,0.00013972,2]
[384633795,1757490647208,-699.58,0.00013972,2]
[384633797,1757490647217,-643.15,0.00013972,2]
[384633799,1757490647226,-480.0,0.00013972,2]
[384633801,1757490647237,-480.0,0.00013972,2]
[384633803,1757490647247,-480.0,0.00013972,2]
[384633805,1757490647257,-480.0,0.00013972,2]
[384633807,1757490647267,-480.0,0.00013972,2]
[384633809,1757490647277,-151.0,0.00013972,2]
[384633811,1757490647287,-151.0,0.00013972,2]
[384633812,1757490647296,-151.0,0.00013972,2]
[384633826,1757490647423,-151.0,0.00013972,2]
[384633828,1757490647433,-151.0,0.00013972,2]
[384633830,1757490647443,-2695.05,0.00013972,2]
[384633832,1757490647452,-480.0,0.00013972,2]
[384633834,1757490647462,-1023.86,0.00013972,2]
[384633836,1757490647471,-502.79748494,0.00013973,2]
[384633838,1757490647480,-500.0,0.00013973,2]
[384633840,1757490647489,-500.0,0.00013973,2]
[384633842,1757490647501,-470.1428095,0.00013973,2]
[384633844,1757490647510,-500.0,0.00013973,2]
[384633846,1757490647519,-500.0,0.00013973,2]
[384633847,1757490647529,-500.0,0.00013973,2]
[384633849,1757490647538,-151.0,0.00013973,2]
[384633851,1757490647548,-151.0,0.00013973,2]
[384633853,1757490647558,-151.0,0.00013973,2]
[384633855,1757490647569,-151.0,0.00013973,2]
[384633857,1757490647579,-151.0,0.00013973,2]
[384633859,1757490647589,-217.18736793,0.00013989,2]
[384633861,1757490647598,-267.0020951,0.00013989,2]
[384633863,1757490647607,-77244.50659491,0.0001399,2]
[384633865,1757490647617,-151.0,0.0001399,2]
[384633867,1757490647626,-151.0,0.0001399,2]
[384633869,1757490647635,-151.868787,0.0001399,2]
[384633871,1757490647645,-151.0,0.0001399,2]
[384633873,1757490647654,-151.0,0.0001399,2]
[384633875,1757490647664,-151.0,0.0001399,2]
[384633877,1757490647673,-170.036965,0.0001399,2]
[384633879,1757490647683,-170.036965,0.0001399,2]
[384633880,1757490647692,-170.036965,0.0001399,2]
[384633882,1757490647701,-170.036965,0.0001399,2]
[384633884,1757490647711,-151.0,0.0001399,2]
[384633886,1757490647720,-151.0,0.0001399,2]
[384633888,1757490647729,-173.037576,0.0001399,2]
[384633890,1757490647739,-173.037576,0.0001399,2]
[384633892,1757490647748,-173.037576,0.0001399,2]
[384633893,1757490647758,-173.037576,0.0001399,2]
[384633895,1757490647768,-151.0,0.0001399,2]
[384633897,1757490647777,-380.355464,0.0001399,2]
[384633899,1757490647788,-380.355464,0.0001399,2]
[384633901,1757490647797,-380.355464,0.0001399,2]
[384633902,1757490647807,-380.355464,0.0001399,2]
[384633904,1757490647817,-151.0,0.0001399,2]
[384633906,1757490647827,-151.0,0.0001399,2]
[384633908,1757490647836,-151.0,0.0001399,2]
[384633910,1757490647846,-151.0,0.0001399,2]
[384633912,1757490647855,-151.0,0.0001399,2]
[384633914,1757490647864,-976.0,0.00014109,2]
[384633916,1757490647874,-2154.0,0.00014109,2]
[384633917,1757490647884,-634.0,0.00014109,2]
[384633919,1757490647894,-409.406,0.00014109,2]
[384633921,1757490647904,-6621.6361387,0.00014146,2]
[384633923,1757490647913,-151.0,0.00014245,2]
[384633925,1757490647923,-151.0,0.00014245,2]
[384633926,1757490647932,-151.0,0.00014245,2]
[384633928,1757490647942,-275.069368,0.00014245,2]
[384633930,1757490647951,-301.999999,0.00014245,2]
[384633932,1757490647961,-152.256682,0.00014245,2]
[384633934,1757490647971,-480.0,0.00014246,2]
[384633936,1757490647980,-480.0,0.00014246,2]
[384633938,1757490647990,-480.0,0.00014246,2]
[384633940,1757490647999,-480.0,0.00014246,2]
[384633941,1757490648008,-480.0,0.00014246,2]
[384633943,1757490648017,-504.83,0.00014246,2]
[384633945,1757490648027,-480.0,0.00014246,2]
[384633947,1757490648036,-480.0,0.00014246,2]
[384633949,1757490648046,-480.0,0.00014246,2]
[384633951,1757490648056,-151.0,0.00014246,2]
[384633953,1757490648066,-480.0,0.00014246,2]
[384633954,1757490648076,-480.0,0.00014246,2]
[384633956,1757490648085,-480.0,0.00014246,2]
[384633958,1757490648095,-480.0,0.00014246,2]
[384633960,1757490648105,-480.0,0.00014246,2]
[384633962,1757490648114,-480.0,0.00014246,2]
[384633964,1757490648124,-151.0,0.00014246,2]
[384633965,1757490648133,-151.0,0.00014246,2]
[384633967,1757490648146,-480.0,0.00014246,2]
[384633969,1757490648156,-480.0,0.00014246,2]
[384633971,1757490648165,-480.0,0.00014246,2]
[384633973,1757490648175,-480.0,0.00014246,2]
[384633974,1757490648186,-480.0,0.00014246,2]
[384633976,1757490648196,-480.0,0.00014246,2]
[384633978,1757490648206,-480.0,0.00014246,2]
[384633980,1757490648216,-480.0,0.00014246,2]
[384633982,1757490648226,-480.0,0.00014246,2]
[384633984,1757490648236,-480.0,0.00014246,2]
[384633985,1757490648245,-334.14459117,0.00014246,2]
[384633987,1757490648255,-151.0,0.00014246,2]
[384633989,1757490648265,-480.0,0.00014246,2]
[384633991,1757490648275,-480.0,0.00014246,2]
[384633993,1757490648284,-480.0,0.00014246,2]
[384633995,1757490648294,-495.25,0.00014246,2]
[384633997,1757490648303,-480.0,0.00014246,2]
[384633999,1757490648313,-480.0,0.00014246,2]
[384634000,1757490648324,-202.118102,0.00014246,2]
[384634002,1757490648334,-170.036965,0.00014246,2]
[384634004,1757490648343,-480.0,0.00014246,2]
[384634006,1757490648353,-170.036965,0.00014246,2]
[384634008,1757490648362,-170.036965,0.00014246,2]
[384634010,1757490648371,-170.036965,0.00014246,2]
[384634012,1757490648381,-1226.38,0.00014246,2]
[384634013,1757490648390,-480.0,0.00014246,2]
[384634015,1757490648400,-480.0,0.00014246,2]
[384634017,1757490648409,-151.0,0.00014246,2]
[384634019,1757490648418,-151.0,0.00014246,2]
[384634021,1757490648429,-480.0,0.00014246,2]
[384634023,1757490648438,-480.0,0.00014246,2]
[384634025,1757490648448,-159.51293912,0.00014246,2]
[384634027,1757490648458,-480.0,0.00014246,2]
[384634029,1757490648467,-567.14,0.00014246,2]
[384634030,1757490648476,-480.0,0.00014246,2]
[384634032,1757490648486,-480.0,0.00014246,2]
[384634034,1757490648495,-480.0,0.00014246,2]
[384634036,1757490648506,-173.037576,0.00014246,2]
[384634038,1757490648516,-173.037576,0.00014246,2]
[384634040,1757490648526,-5382.22,0.00014246,2]
[384634042,1757490648536,-173.037576,0.00014246,2]
[384634044,1757490648545,-173.037576,0.00014246,2]
[384634046,1757490648555,-480.0,0.00014246,2]
[384634047,1757490648565,-480.0,0.00014246,2]
[384634049,1757490648575,-287.76671787,0.00014246,2]
[384634051,1757490648586,-233.099947,0.00014246,2]
[384634053,1757490648596,-480.0,0.00014246,2]
[384634055,1757490648606,-480.0,0.00014246,2]
[384634057,1757490648616,-380.355464,0.00014246,2]
[384634059,1757490648626,-480.0,0.00014246,2]
[384634061,1757490648635,-380.355464,0.00014246,2]
[384634063,1757490648644,-380.355464,0.00014246,2]
[384634064,1757490648653,-480.0,0.00014246,2]
[384634066,1757490648663,-380.355464,0.00014246,2]
[384634068,1757490648673,-480.0,0.00014246,2]
[384634070,1757490648683,-480.0,0.00014246,2]
[384634072,1757490648693,-485.13,0.00014246,2]
[384634074,1757490648702,-480.0,0.00014246,2]
[384634076,1757490648712,-480.0,0.00014246,2]
[384634078,1757490648721,-480.0,0.00014246,2]
[384634079,1757490648731,-480.0,0.00014246,2]
[384634081,1757490648740,-489.65113406,0.00014246,2]
[384634083,1757490648750,-480.0,0.00014246,2]
[384634085,1757490648759,-480.0,0.00014246,2]
[384634087,1757490648768,-647.59,0.00014246,2]
[384634089,1757490648778,-480.0,0.00014246,2]
[384634091,1757490648788,-480.0,0.00014246,2]
[384634092,1757490648797,-480.0,0.00014246,2]
[384634094,1757490648807,-480.0,0.00014246,2]
[384634096,1757490648818,-699.58,0.00014246,2]
[384634098,1757490648828,-643.15,0.00014246,2]
[384634100,1757490648837,-480.0,0.00014246,2]
[384634102,1757490648847,-480.0,0.00014246,2]
[384634104,1757490648858,-480.0,0.00014246,2]
[384634106,1757490648873,-480.0,0.00014246,2]
[384634108,1757490648883,-480.0,0.00014246,2]
[384634109,1757490648892,-151.0,0.00014246,2]
[384634111,1757490648902,-151.0,0.00014246,2]
[384634113,1757490648912,-151.0,0.00014246,2]
[384634115,1757490648926,-151.0,0.00014246,2]
[384634117,1757490648944,-267.590859,0.00014246,2]
[384634119,1757490648958,-2695.05,0.00014246,2]
[384634121,1757490648967,-480.0,0.00014246,2]
[384634123,1757490648977,-1023.86,0.00014246,2]
[384634125,1757490648987,-189.261,0.00014265,2]
[384634126,1757490648996,-520.53096865,0.00014283,2]
[384634128,1757490649006,-160.0,0.00014502,2]
[384634130,1757490649017,-233.08191698,0.00014502,2]
[384634132,1757490649026,-846.88337432,0.00014502,2]
[384634134,1757490649036,-530.87637315,0.00014502,2]
[384634136,1757490649045,-417.15472785,0.00014502,2]
[384634138,1757490649055,-217.67150996,0.00014502,2]
[384634140,1757490649065,-203.30414021,0.00014502,2]
[384634142,1757490649076,-160.0,0.00014502,2]
[384634144,1757490649086,-160.0,0.00014502,2]
[384634146,1757490649096,-151.0,0.00014515,2]
[384634147,1757490649106,-151.0,0.00014519,2]
[384634149,1757490649115,-480.0,0.0001452,2]
[384634151,1757490649125,-480.0,0.0001452,2]
[384634153,1757490649134,-480.0,0.0001452,2]
[384634155,1757490649145,-504.83,0.0001452,2]
[384634157,1757490649156,-480.0,0.0001452,2]
[384634159,1757490649165,-480.0,0.0001452,2]
[384634160,1757490649175,-151.0,0.0001452,2]
[384634162,1757490649184,-480.0,0.0001452,2]
[384634164,1757490649194,-151.0,0.0001452,2]
[384634166,1757490649203,-480.0,0.0001452,2]
[384634168,1757490649212,-480.0,0.0001452,2]
[384634170,1757490649222,-480.0,0.0001452,2]
[384634171,1757490649231,-480.0,0.0001452,2]
[384634173,1757490649240,-480.0,0.0001452,2]
[384634175,1757490649250,-480.0,0.0001452,2]
[384634177,1757490649259,-480.0,0.0001452,2]
[384634179,1757490649269,-480.0,0.0001452,2]
[384634181,1757490649278,-480.0,0.0001452,2]
[384634183,1757490649289,-480.0,0.0001452,2]
[384634184,1757490649298,-480.0,0.0001452,2]
[384634186,1757490649307,-480.0,0.0001452,2]
[384634188,1757490649317,-480.0,0.0001452,2]
[384634190,1757490649327,-480.0,0.0001452,2]
[384634192,1757490649337,-377.06912465,0.0001452,2]
[384634194,1757490649347,-480.0,0.0001452,2]
[384634196,1757490649357,-480.0,0.0001452,2]
[384634198,1757490649367,-480.0,0.0001452,2]
[384634200,1757490649377,-480.0,0.0001452,2]
[384634202,1757490649387,-495.25,0.0001452,2]
[384634204,1757490649397,-480.0,0.0001452,2]
[384634206,1757490649407,-480.0,0.0001452,2]
[384634208,1757490649417,-170.036965,0.0001452,2]
[384634209,1757490649427,-480.0,0.0001452,2]
[384634211,1757490649437,-170.036965,0.0001452,2]
[384634213,1757490649447,-170.036965,0.0001452,2]
[384634215,1757490649456,-170.036969,0.0001452,2]
[384634217,1757490649465,-1226.38,0.0001452,2]
[384634219,1757490649475,-480.0,0.0001452,2]
[384634221,1757490649484,-480.0,0.0001452,2]
[384634223,1757490649493,-151.0,0.0001452,2]
[384634225,1757490649503,-151.0,0.0001452,2]
[384634226,1757490649512,-480.0,0.0001452,2]
[384634228,1757490649521,-480.0,0.0001452,2]
[384634230,1757490649531,-567.14,0.0001452,2]
[384634232,1757490649540,-480.0,0.0001452,2]
[384634234,1757490649550,-480.0,0.0001452,2]
[384634236,1757490649559,-480.0,0.0001452,2]
[384634238,1757490649568,-173.037576,0.0001452,2]
[384634240,1757490649578,-173.037576,0.0001452,2]
[384634242,1757490649587,-5382.22,0.0001452,2]
[384634244,1757490649597,-173.037576,0.0001452,2]
[384634246,1757490649606,-173.03758,0.0001452,2]
[384634247,1757490649615,-326.28506273,0.0001452,2]
[384634249,1757490649627,-480.0,0.0001452,2]
[384634251,1757490649636,-480.0,0.0001452,2]
[384634253,1757490649646,-480.0,0.0001452,2]
[384634255,1757490649656,-380.355464,0.0001452,2]
[384634257,1757490649665,-480.0,0.0001452,2]
[384634259,1757490649675,-380.355464,0.0001452,2]
[384634261,1757490649685,-380.355464,0.0001452,2]
[384634263,1757490649694,-480.0,0.0001452,2]
[384634264,1757490649703,-380.355457,0.0001452,2]
[384634266,1757490649713,-480.0,0.0001452,2]
[384634268,1757490649722,-480.0,0.0001452,2]
[384634270,1757490649731,-485.13,0.0001452,2]
[384634272,1757490649741,-480.0,0.0001452,2]
[384634274,1757490649750,-480.0,0.0001452,2]
[384634276,1757490649760,-480.0,0.0001452,2]
[384634278,1757490649769,-480.0,0.0001452,2]
[384634280,1757490649780,-480.0,0.0001452,2]
[384634282,1757490649790,-647.59,0.0001452,2]
[384634284,1757490649799,-480.0,0.0001452,2]
[384634286,1757490649808,-480.0,0.0001452,2]
[384634287,1757490649818,-480.0,0.0001452,2]
[384634289,1757490649827,-480.0,0.0001452,2]
[384634291,1757490649837,-699.58,0.0001452,2]
[384634293,1757490649845,-643.15,0.0001452,2]
[384634295,1757490649855,-480.0,0.0001452,2]
[384634297,1757490649864,-480.0,0.0001452,2]
[384634299,1757490649873,-480.0,0.0001452,2]
[384634301,1757490649882,-480.0,0.0001452,2]
[384634302,1757490649892,-2695.05,0.0001452,2]
[384634304,1757490649902,-480.0,0.0001452,2]
[384634306,1757490649911,-1023.86,0.0001452,2]
[384634308,1757490649921,-1000.0,0.00014521,2]
[384634310,1757490649930,-500.0,0.00014521,2]
[384634312,1757490649939,-1000.0,0.00014521,2]
[384634314,1757490649948,-1000.0,0.00014521,2]
[384634316,1757490649957,-1000.0,0.00014521,2]
[384634317,1757490649966,-10581.05038389,0.00014537,2]
[384634319,1757490649975,-151.0,0.00014538,2]
[384634321,1757490649985,-406.92111745,0.00014553,2]
[384634323,1757490649995,-500.0,0.00014575,2]
[384634325,1757490650004,-500.0,0.00014575,2]
[384634327,1757490650013,-502.01557013,0.00014575,2]
[384634329,1757490650023,-500.0,0.00014615,2]
[384634331,1757490650032,-500.0,0.00014615,2]
[384634333,1757490650043,-520.53096865,0.00014694,2]
[384634335,1757490650052,-500.0,0.00014695,2]
[384634337,1757490650061,-151.0,0.00014793,2]
[384634338,1757490650070,-14380.9644808,0.00014794,2]
[384634340,1757490650079,-480.0,0.00014794,2]
[384634342,1757490650089,-504.83,0.00014794,2]
[384634344,1757490650098,-480.0,0.00014794,2]
[384634346,1757490650107,-157.00371938,0.00014794,2]
[384634348,1757490650116,-290.56573212,0.00014794,2]
[384634350,1757490650126,-157.0,0.00014794,2]
[384634352,1757490650135,-157.0,0.00014794,2]
[384634354,1757490650144,-157.0,0.00014794,2]
[384634356,1757490650156,-157.0,0.00014794,2]
[384634357,1757490650165,-291.55851868,0.00014794,2]
[384634359,1757490650174,-290.8971716,0.00014794,2]
[384634361,1757490650183,-157.0,0.00014794,2]
[384634363,1757490650193,-157.0,0.00014794,2]
[384634365,1757490650202,-480.0,0.00014794,2]
[384634367,1757490650211,-480.0,0.00014794,2]
[384634369,1757490650221,-480.0,0.00014794,2]
[384634371,1757490650230,-330.62866399,0.00014794,2]
[384634372,1757490650239,-480.0,0.00014794,2]
[384634374,1757490650249,-480.0,0.00014794,2]
[384634376,1757490650258,-157.0,0.00014794,2]
[384634378,1757490650267,-157.0,0.00014794,2]
[384634380,1757490650277,-157.0,0.00014794,2]
[384634382,1757490650286,-157.0,0.00014794,2]
[384634384,1757490650295,-297.17051415,0.00014794,2]
[384634386,1757490650304,-157.0,0.00014794,2]
[384634388,1757490650313,-245.4658174,0.00014794,2]
[384634390,1757490650323,-157.0,0.00014794,2]
[384634392,1757490650331,-480.0,0.00014794,2]
[384634393,1757490650340,-480.0,0.00014794,2]
[384634395,1757490650349,-178.41467125,0.00014794,2]
[384634418,1757490650578,-301.58532875,0.00014794,2]
[384634420,1757490650588,-480.0,0.00014794,2]
[384634422,1757490650598,-480.0,0.00014794,2]
[384634424,1757490650607,-480.0,0.00014794,2]
[384634426,1757490650617,-480.0,0.00014794,2]
[384634428,1757490650627,-480.0,0.00014794,2]
[384634430,1757490650636,-480.0,0.00014794,2]
[384634432,1757490650646,-495.25,0.00014794,2]
[384634434,1757490650655,-480.0,0.00014794,2]
[384634436,1757490650665,-480.0,0.00014794,2]
[384634438,1757490650675,-480.0,0.00014794,2]
[384634440,1757490650684,-1226.38,0.00014794,2]
[384634441,1757490650693,-480.0,0.00014794,2]
[384634443,1757490650703,-480.0,0.00014794,2]
[384634445,1757490650712,-480.0,0.00014794,2]
[384634447,1757490650722,-480.0,0.00014794,2]
[384634449,1757490650731,-567.14,0.00014794,2]
[384634451,1757490650741,-480.0,0.00014794,2]
[384634453,1757490650751,-480.0,0.00014794,2]
[384634455,1757490650760,-480.0,0.00014794,2]
[384634457,1757490650769,-5382.22,0.00014794,2]
[384634459,1757490650779,-157.0,0.00014794,2]
[384634461,1757490650788,-157.0,0.00014794,2]
[384634463,1757490650797,-223.54,0.00014794,2]
[384634464,1757490650806,-157.0,0.00014794,2]
[384634465,1757490650815,-480.0,0.00014794,2]
[384634466,1757490650824,-480.0,0.00014794,2]
[384634467,1757490650834,-480.0,0.00014794,2]
[384634468,1757490650844,-480.0,0.00014794,2]
[384634469,1757490650854,-480.0,0.00014794,2]
[384634470,1757490650864,-480.0,0.00014794,2]
[384634471,1757490650873,-485.13,0.00014794,2]
[384634472,1757490650882,-480.0,0.00014794,2]
[384634473,1757490650891,-480.0,0.00014794,2]
[384634474,1757490650900,-480.0,0.00014794,2]
[384634475,1757490650911,-480.0,0.00014794,2]
[384634476,1757490650920,-1021.81280291,0.00014794,2]
[384634477,1757490650930,-480.0,0.00014794,2]
[384634478,1757490650939,-647.59,0.00014794,2]
[384634479,1757490650949,-480.0,0.00014794,2]
[384634480,1757490650958,-480.0,0.00014794,2]
[384634481,1757490650968,-480.0,0.00014794,2]
[384634482,1757490650977,-480.0,0.00014794,2]
[384634483,1757490650987,-157.0,0.00014794,2]
[384634484,1757490650996,-699.58,0.00014794,2]
[384634485,1757490651006,-157.0,0.00014794,2]
[384634486,1757490651015,-500.0,0.00014794,2]
[384634487,1757490651024,-643.15,0.00014794,2]
[384634488,1757490651033,-365.98392919,0.00014794,2]
[384634489,1757490651043,-480.0,0.00014794,2]
[384634490,1757490651053,-480.0,0.00014794,2]
[384634491,1757490651062,-480.0,0.00014794,2]
[384634492,1757490651073,-2695.05,0.00014794,2]
[384634493,1757490651083,-480.0,0.00014794,2]
[384634494,1757490651093,-1023.86,0.00014794,2]
[384634495,1757490651103,-446.05138704,0.000149,2]
[384634496,1757490651113,-446.05138702,0.000149,2]
[384634497,1757490651122,-446.05138702,0.000149,2]
[384634498,1757490651131,-160.0,0.00015,2]
[384634500,1757490651141,-57.28767471,0.0001501,2]
[384634502,1757490651155,-362.71232529,0.0001501,2]
[384634504,1757490651164,-424.8852682,0.00015025,2]
[384634506,1757490651173,-155.0,0.00015067,2]
[384634508,1757490651183,-1017.43258398,0.00015068,2]
[384634510,1757490651192,-157.0,0.00015068,2]
[384634512,1757490651201,-232.21531837,0.00015068,2]
[384634514,1757490651210,-157.0,0.00015068,2]
[384634516,1757490651220,-500.0,0.00015068,2]
[384634517,1757490651229,-150.52137978,0.00015068,2]
[384634519,1757490651239,-504.83,0.00015068,2]
[384634521,1757490651248,-480.0,0.00015068,2]
[384634523,1757490651257,-118.42262747,0.00015068,2]
[384634526,1757490651273,-361.57737253,0.00015068,2]
[384634528,1757490651282,-480.0,0.00015068,2]
[384634530,1757490651292,-480.0,0.00015068,2]